[Event "BL 2018-19"]
[Site "Berlin"]
[Date "2019.04.07"]
[Round "15.8"]
[White "Kollars, Dmitrij"]
[Black "Nikolic, Predrag"]
[Result "1-0"]
[ECO "A28"]
[WhiteElo "2542"]
[BlackElo "2576"]
[Annotator "ChessBase"]
[PlyCount "133"]
[EventDate "2018.11.10"]
[EventType "team-tourn"]
[EventCountry "GER"]
[SourceTitle "playchess.com"]
[Source "ChessBase"]
[SourceQuality "1"]
[WhiteTeam "SF Deizisau"]
[BlackTeam "Solingen"]
[TimeControl "40/6000+30:3000+30"]

1. c4 {[%emt 0:00:00]} e5 {[%emt 0:00:04]} 2. Nc3 {[%emt 0:00:00]} Nf6 {[%emt 0:02:29]} 3. Nf3 {[%emt 0:00:16]} Nc6 {[%emt 0:00:15]} 4. e3 {[%emt 0:00:25]} Be7 {[%emt 0:01:06]} 5. Qb3 {[%emt 0:01:18]} O-O {[%emt 0:02:31]} 6. Be2 {[%emt 0:00:20]} b6 {[%emt 0:07:06]} 7. O-O {[%emt 0:00:39]} Bb7 {[%emt 0:02:04]} 8. d3 {[%emt 0:04:29]} Re8 {[%emt 0:01:50]} 9. Bd2 {[%emt 0:06:16]} Bf8 {[%emt 0:03:44]} 10. Nd5 {[%emt 0:04:22]} d6 {[%emt 0:01:47]} 11. Rac1 {[%emt 0:04:21]} e4 {[%emt 0:07:10]} 12. dxe4 {[%emt 0:10:23]} Nxe4 {[%emt 0:00:56]} 13. Rfd1 {[%emt 0:03:37]} Nxd2 {[%emt 0:09:03]} 14. Rxd2 {[%emt 0:00:43]} Ne5 {[%emt 0:00:14]} 15. Qd1 {[%emt 0:09:27]} Nd7 {[%emt 0:03:31]} 16. Nd4 {[%emt 0:02:38]} a6 {[%emt 0:01:51]} 17. Bf3 {[%emt 0:02:24]} Qb8 {[%emt 0:00:25]} 18. Nf4 {[%emt 0:05:13]} Ne5 {[%emt 0:01:23]} 19. Bd5 {[%emt 0:02:07]} c6 {[%emt 0:07:05]} 20. Be4 {[%emt 0:01:06]} g6 {[%emt 0:02:39]} 21. b4 {[%emt 0:04:40]} Rd8 {[%emt 0:20:13]} 22. Qb3 {[%emt 0:12:46]} Ra7 {[%emt 0:10:15]} 23. a4 {[%emt 0:08:28]} Ba8 {[%emt 0:02:58]} 24. Qb1 {[%emt 0:05:20]} d5 {[%emt 0:06:03]} 25. cxd5 {[%emt 0:00:10]} cxd5 {[%emt 0:00:04]} 26. Bd3 {[%emt 0:00:47]} Nc4 {[%emt 0:02:48]} 27. Bxc4 {[%emt 0:01:38]} dxc4 {[%emt 0:00:04]} 28. Rxc4 {[%emt 0:00:42]} Rc7 {[%emt 0:01:49]} 29. Rxc7 {[%emt 0:02:45]} Qxc7 {[%emt 0:00:02]} 30. b5 {[%emt 0:02:14]} axb5 {[%emt 0:01:44]} 31. Nxb5 {[%emt 0:02:13]} Qc8 {[%emt 0:01:08]} 32. Rxd8 {[%emt 0:03:41]} Qxd8 {[%emt 0:00:01]} 33. Qd3 {[%emt 0:00:34]} Qc8 {[%emt 0:00:36]} 34. Nc3 {[%emt 0:01:21]} Bg7 {[%emt 0:03:11]} 35. Nfd5 {[%emt 0:02:13]} Bxd5 {[%emt 0:05:21]} 36. Nxd5 {[%emt 0:00:08]} Qc1+ {[%emt 0:00:40]} 37. Qf1 {[%emt 0:00:03]} Qc5 {[%emt 0:01:15]} 38. Qd1 {[%emt 0:03:02]} h5 {[%emt 0:00:02]} 39. g3 {[%emt 0:02:15]} b5 {[%emt 0:00:47]} 40. axb5 {[%emt 0:01:20]} Qxb5 {[%emt 0:00:09]} 41. Qf3 {[%emt 0:51:15]} Qd7 {[%emt 0:03:37]} 42. e4 {[%emt 0:00:00]} Bd4 {[%emt 0:02:24]} 43. Kg2 {[%emt 0:00:00]} Kg7 {[%emt 0:00:24]} 44. h3 {[%emt 0:00:00]} Qd6 {[%emt 0:01:39]} 45. Nf4 {[%emt 0:00:00]} Be5 {[%emt 0:02:36]} 46. Nd3 {[%emt 0:00:00]} Bd4 {[%emt 0:00:06]} 47. Qe2 {[%emt 0:00:00]} Qc6 {[%emt 0:01:06]} 48. Ne1 {[%emt 0:00:00]} Qc3 {[%emt 0:03:34]} 49. Nf3 {[%emt 0:00:00]} Qb2 {[%emt 0:01:28]} 50. Qxb2 {[%emt 0:00:00]} Bxb2 {[%emt 0:00:03]} 51. Ne1 {[%emt 0:00:00]} Kf6 {[%emt 0:05:22]} 52. Nd3 {[%emt 0:00:00]} Bd4 {[%emt 0:00:05]} 53. f4 {[%emt 0:00:00]} Ke6 {[%emt 0:00:07]} 54. Kf3 {[%emt 0:00:00]} Bb6 {[%emt 0:04:33]} 55. Nb4 {[%emt 0:00:00]} Bc5 {[%emt 0:01:17]} 56. Nc2 {[%emt 0:00:00]} Bb6 {[%emt 0:01:05]} 57. Ne3 {[%emt 0:00:00]} Bc5 {[%emt 0:00:15]} 58. Ke2 {[%emt 0:00:00]} Bb6 {[%emt 0:01:55]} 59. f5+ {[%emt 0:00:00]} gxf5 {[%emt 0:03:05]} 60. exf5+ {[%emt 0:00:00]} Kd7 {[%emt 0:00:01]} 61. Nd5 {[%emt 0:00:00]} Bd8 {[%emt 0:00:08]} 62. Kf3 {[%emt 0:00:00]} Kd6 {[%emt 0:00:59]} 63. Ke4 {[%emt 0:00:00]} h4 {[%emt 0:01:22]} 64. g4 {[%emt 0:00:00]} Ba5 {[%emt 0:01:48]} 65. Ne3 {[%emt 0:00:00]} Be1 {[%emt 0:01:32]} 66. Nc4+ {[%emt 0:00:00]} Ke7 {[%emt 0:00:12]} 67. g5 {[%emt 0:00:00]} 1-0

[Event "BL 2018-19"]
[Site "Berlin"]
[Date "2019.04.07"]
[Round "15.8"]
[White "Schmidek, Emil"]
[Black "Sebastian, Dirk"]
[Result "0-1"]
[ECO "C75"]
[WhiteElo "2387"]
[BlackElo "2442"]
[Annotator "NA"]
[PlyCount "72"]
[EventDate "2018.11.10"]
[EventType "team-tourn"]
[EventCountry "GER"]
[SourceTitle "playchess.com"]
[Source "ChessBase"]
[SourceQuality "1"]
[WhiteTeam "SF Berlin"]
[BlackTeam "Hamburg SK"]
[TimeControl "40/6000+30:3000+30"]

1. e4 e5 2. Nf3 Nc6 3. Bb5 a6 4. Ba4 d6 5. c3 Bd7 6. O-O g6 7. d4 Bg7 8. d5 Nce7 9. Bxd7+ Qxd7 10. c4 h6 11. Nc3 f5 12. Nd2 {C76: Ruy Lopez: Deferred Steinitz: 5 c3 Bd7 6 d4 g6} (12. exf5 gxf5 13. Ne1 Nf6 14. f4 e4 15. Nc2 c5 16. dxc6 bxc6 17. Be3 O-O 18. Qd2 c5 19. h3 Qe6 {1-0 (51) Zhao,J (2604)-Sargissian,G (2672) Riadh 2017}) 12... Nf6 13. b4 {LiveBook: 11 Games} O-O 14. f3 c6 15. Nb3 (15. Qb3 $11) 15... b5 $146 ({Predecessor:} 15... cxd5 16. cxd5 Rac8 17. Qd3 Qc7 18. Bb2 fxe4 19. fxe4 Qb6+ 20. Kh1 Ng4 21. Nd1 Qxb4 22. Rxf8+ Rxf8 23. h3 Qxe4 {0-1 (23) Everett,E (2190)-Hess,M (2271) Austria 2017}) 16. c5 Rfd8 17. Be3 fxe4 18. fxe4 cxd5 19. exd5 Nf5 $11 20. Bf2 Qf7 21. c6 e4 22. Bb6 Rdb8 23. Bd4 Re8 24. Rc1 h5 25. Bxf6 Qxf6 26. Qe2 Bh6 27. Nxe4 Qh4 28. Rce1 Be3+ 29. Nf2 Bf4 30. Qxe8+ Rxe8 31. Rxe8+ Kf7 32. Nh3 Bxh2+ 33. Kxh2 Qg3+ 34. Kh1 Kxe8 35. Nf4 Ne3 36. Rc1 Ng4 0-1

[Event "BL 2018-19"]
[Site "Berlin"]
[Date "2019.04.07"]
[Round "15.8"]
[White "Margolin, Boris"]
[Black "Lammers, Markus"]
[Result "1/2-1/2"]
[ECO "C48"]
[WhiteElo "2386"]
[BlackElo "2298"]
[Annotator "NA"]
[PlyCount "146"]
[EventDate "2018.11.10"]
[EventType "team-tourn"]
[EventCountry "GER"]
[SourceTitle "playchess.com"]
[Source "ChessBase"]
[SourceQuality "1"]
[WhiteTeam "SV Hofheim"]
[BlackTeam "Zugzwang Muenchen"]
[TimeControl "40/6000+30:3000+30"]

1. e4 {[%emt 0:00:00]} e5 {[%emt 0:00:00]} 2. Nf3 {[%emt 0:00:00]} Nf6 {[%emt 0:00:00]} 3. Nc3 {[%emt 0:00:18]} Nc6 {[%emt 0:00:00]} 4. Bb5 {[%emt 0:01:40]} Bd6 {[%emt 0:01:24]} 5. O-O {[%emt 0:01:55] C48: Four Knights: 4 Bb5, replies other than 4...Bb4} (5. d3 h6 6. a3 O-O 7. g4 Be7 8. g5 hxg5 9. Bxg5 Nd4 10. Rg1 Nxb5 11. Nxb5 c6 12. Bh6 Ne8 13. Qd2 {0-1 (51) Maze,S (2596)-Alekseenko,K (2637) chess.com INT 2019}) 5... O-O {[%emt 0:00:08]} 6. a3 {[%emt 0:06:26]} Re8 {[%emt 0:09:23]} 7. d3 {[%emt 0:01:10]} Bf8 {[%emt 0:14:19]} 8. Bc4 {[%emt 0:02:13]} h6 {[%emt 0:04:00]} 9. Re1 {[%emt 0:06:03]} d6 {[%emt 0:05:52]} 10. h3 {[%emt 0:01:32]} Ne7 $146 {[%emt 0:09:04]} ({Predecessor:} 10... Be6 11. Bxe6 Rxe6 12. Nd5 Ne7 13. Nxf6+ Rxf6 {½-½ (22) Frhat,A (2407)-Haddouche,M (2497) Marrakesh 2016}) 11. d4 {[%emt 0:05:41]} Ng6 {[%emt 0:05:17]} 12. Bb3 {[%emt 0:27:04]} c6 {[%emt 0:06:14]} 13. Be3 {[%emt 0:02:47]} Qc7 {[%emt 0:04:30]} 14. d5 {[%emt 0:06:35]} Nh7 {[%emt 0:06:45]} 15. Ne2 {[%emt 0:03:00]} Nf6 {[%emt 0:02:26]} 16. Nc3 {[%emt 0:01:42]} Ne7 {[%emt 0:02:10]} 17. Rc1 {[%emt 0:04:33]} b5 {[%emt 0:04:28]} 18. Nxe5 {[%emt 0:06:07]} dxe5 {[%emt 0:02:20]} 19. d6 {[%emt 0:00:13]} Qd8 {[%emt 0:02:22]} 20. dxe7 {[%emt 0:00:06]} Qxe7 {[%emt 0:00:38]} 21. Qf3 {[%emt 0:00:26]} Be6 {[%emt 0:01:34]} 22. Bxe6 {[%emt 0:05:18]} Qxe6 {[%emt 0:00:09]} 23. Red1 {[%emt 0:00:25]} a5 {[%emt 0:02:08]} 24. Ne2 {[%emt 0:07:34]} a4 {[%emt 0:04:39]} 25. Ng3 {[%emt 0:00:20]} b4 {[%emt 0:01:30]} 26. axb4 {[%emt 0:01:30]} Bxb4 {[%emt 0:00:04]} 27. Rd3 {[%emt 0:04:21]} Red8 {[%emt 0:04:43]} 28. Rcd1 {[%emt 0:02:13]} Rxd3 {[%emt 0:00:38]} 29. Rxd3 {[%emt 0:00:03]} Kh7 {[%emt 0:01:10]} 30. Qd1 {[%emt 0:02:26]} Be7 {[%emt 0:01:41]} 31. Bd2 {[%emt 0:02:30]} Rb8 {[%emt 0:02:31]} 32. Bc3 {[%emt 0:02:57]} Bc5 {[%emt 0:00:51]} 33. Rd8 {[%emt 0:01:50]} Rb7 {[%emt 0:05:02]} 34. Qd3 {[%emt 0:00:37]} h5 {[%emt 0:01:59]} 35. Qe2 {[%emt 0:02:10]} g6 {[%emt 0:00:40]} 36. Qa6 {[%emt 0:01:24]} h4 {[%emt 0:01:32]} 37. Nh1 {[%emt 0:02:33]} Ra7 {[%emt 0:04:14]} 38. Qc8 {[%emt 0:00:39]} Qxc8 {[%emt 0:01:13]} 39. Rxc8 {[%emt 0:00:01]} Nxe4 {[%emt 0:00:15]} 40. Rxc6 {[%emt 0:00:56]} f6 {[%emt 0:01:31]} 41. Kf1 {[%emt 0:50:36]} Rb7 {[%emt 0:23:08]} 42. f3 {[%emt 0:00:00]} Nxc3 {[%emt 0:00:30]} 43. Rxc5 {[%emt 0:00:00]} Nd1 {[%emt 0:00:22]} 44. Nf2 {[%emt 0:00:00]} Ne3+ {[%emt 0:11:18]} 45. Ke2 {[%emt 0:00:00]} Nxg2 {[%emt 0:00:02]} 46. Nd3 {[%emt 0:00:00]} g5 {[%emt 0:00:10]} 47. Ra5 {[%emt 0:00:00]} Nf4+ {[%emt 0:00:17]} 48. Nxf4 {[%emt 0:00:00]} gxf4 {[%emt 0:01:16]} 49. Rxa4 {[%emt 0:00:00]} Rxb2 {[%emt 0:00:04]} 50. Kd3 {[%emt 0:00:00]} Kg6 {[%emt 0:01:34]} 51. Ra1 {[%emt 0:00:00]} Kf5 {[%emt 0:01:06]} 52. Rg1 $19 {[%emt 0:00:00]} Ra2 {[%emt 0:00:50]} 53. Rg4 {[%emt 0:00:00]} Ra3+ {[%emt 0:02:22]} 54. Ke2 {[%emt 0:00:00]} Rc3 {[%emt 0:00:25]} 55. Rxh4 {[%emt 0:00:00]} Rxc2+ {[%emt 0:00:06]} 56. Kf1 {[%emt 0:00:00]} e4 {[%emt 0:09:27]} 57. fxe4+ {[%emt 0:00:00]} Kxe4 {[%emt 0:00:02]} 58. Rh6 {[%emt 0:00:00]} Kf3 {[%emt 0:00:31]} 59. Kg1 {[%emt 0:00:00]} Rc1+ {[%emt 0:00:56]} 60. Kh2 {[%emt 0:00:00]} Rc2+ {[%emt 0:00:04]} 61. Kg1 {[%emt 0:00:00]} f5 {[%emt 0:00:29]} 62. Ra6 {[%emt 0:00:00]} Rc1+ {[%emt 0:00:08]} 63. Kh2 {[%emt 0:00:00]} Rc2+ {[%emt 0:00:05]} 64. Kg1 {[%emt 0:00:00]} Rc1+ {[%emt 0:02:51]} 65. Kh2 {[%emt 0:00:00]} Kf2 {[%emt 0:01:27]} 66. Ra5 {[%emt 0:02:38]} Re1 {[%emt 0:01:22]} 67. Rxf5 {[%emt 0:00:43]} f3 {[%emt 0:00:11]} 68. h4 {[%emt 0:02:43]} Re4 {[%emt 0:00:22]} 69. Kh3 {[%emt 0:00:34]} Rd4 {[%emt 0:01:40]} 70. h5 {[%emt 0:00:52]} Re4 {[%emt 0:00:14]} 71. h6 {[%emt 0:01:26]} Re1 {[%emt 0:01:05]} 72. h7 {[%emt 0:02:55]} Rh1+ {[%emt 0:00:06]} 73. Kg4 {[%emt 0:00:02]} Rxh7 {[%emt 0:00:11]} 1/2-1/2

[Event "BL 2018-19"]
[Site "Berlin"]
[Date "2019.04.07"]
[Round "15.13"]
[White "Hector, Jonny"]
[Black "Maiwald, Jens-Uwe"]
[Result "0-1"]
[ECO "B43"]
[WhiteElo "2495"]
[BlackElo "2443"]
[Annotator "RC"]
[PlyCount "136"]
[EventDate "2018.11.10"]
[EventType "team-tourn"]
[EventCountry "GER"]
[SourceTitle "playchess.com"]
[Source "ChessBase"]
[SourceQuality "1"]
[WhiteTeam "Kiel"]
[BlackTeam "Dresden"]
[TimeControl "40/6000+30:3000+30"]

1. e4 {[%emt 0:00:00]} c5 {[%emt 0:00:00]} 2. Nf3 {[%emt 0:00:00]} e6 {[%emt 0:00:00]} 3. d4 {[%emt 0:00:06]} cxd4 {[%emt 0:00:00]} 4. Nxd4 {[%emt 0:00:11]} a6 {[%emt 0:00:29]} 5. Nc3 {[%emt 0:01:51]} Qc7 {[%emt 0:00:50]} 6. Bd3 {[%emt 0:03:48]} Nf6 {[%emt 0:01:24]} 7. f4 {[%emt 0:02:55]} Bb4 {[%emt 0:02:52]} 8. O-O {[%emt 0:05:19]} Bc5 {[%emt 0:03:54]} 9. Nce2 {[%emt 0:03:11]} d6 {[%emt 0:02:11]} 10. Kh1 {[%emt 0:03:05]} e5 {[%emt 0:10:11]} 11. Nb3 {[%emt 0:05:09]} Ba7 {[%emt 0:03:15]} 12. Qe1 {[%emt 0:06:36]} Be6 {[%emt 0:28:27]} 13. Qg3 {[%emt 0:01:43]} Nbd7 {[%emt 0:00:36]} 14. Bd2 {[%emt 0:05:57]} h5 {[%emt 0:08:00]} 15. f5 {[%emt 0:05:49]} Bxb3 {[%emt 0:02:06]} 16. axb3 {[%emt 0:00:54]} Ng4 {[%emt 0:09:18]} 17. Nc3 {[%emt 0:05:42]} Ndf6 {[%emt 0:01:23]} 18. Bg5 {[%emt 0:01:39]} Qc5 {[%emt 0:01:54]} 19. Bh4 {[%emt 0:00:55]} Qe3 {[%emt 0:04:52]} 20. Qxe3 {[%emt 0:01:53]} Nxe3 {[%emt 0:03:54]} 21. Bxf6 {[%emt 0:04:24]} gxf6 {[%emt 0:01:59]} 22. Rf3 {[%emt 0:02:21]} Rd8 {[%emt 0:08:13]} 23. Re1 {[%emt 0:04:40]} d5 {[%emt 0:00:33]} 24. Rfxe3 {[%emt 0:10:02]} Bxe3 {[%emt 0:01:02]} 25. Nxd5 Bg5 {[%emt 0:00:58]} 26. Kg1 {[%emt 0:00:47]} h4 {[%emt 0:01:20]} 27. Ra1 {[%emt 0:01:27]} Kf8 {[%emt 0:04:46]} 28. b4 {[%emt 0:02:00]} Kg7 {[%emt 0:00:03]} 29. Kf2 {[%emt 0:00:57]} Rc8 {[%emt 0:01:38]} 30. Ke2 {[%emt 0:04:19]} Rhd8 {[%emt 0:00:03]} 31. c4 {[%emt 0:01:53]} Rxd5 {[%emt 0:03:33]} 32. exd5 {[%emt 0:01:36]} e4 {[%emt 0:00:18]} 33. c5 {[%emt 0:06:38]} exd3+ {[%emt 0:00:03]} 34. Kxd3 {[%emt 0:00:08]} Bf4 {[%emt 0:01:07]} 35. Kc4 {[%emt 0:00:14]} Re8 {[%emt 0:03:12]} 36. b5 {[%emt 0:03:23]} Re4+ {[%emt 0:00:21]} 37. Kd3 {[%emt 0:00:44]} Re3+ {[%emt 0:01:29]} 38. Kd4 {[%emt 0:01:05]} axb5 {[%emt 0:00:44]} 39. Ra7 {[%emt 0:06:04]} Rb3 {[%emt 0:00:38]} 40. d6 {[%emt 0:00:25]} Be3+ {[%emt 0:01:52]} 41. Ke4 {[%emt 0:58:43]} Bxc5 {[%emt 0:02:54]} 42. d7 {[%emt 0:00:00]} Re3+ {[%emt 0:04:38]} 43. Kf4 {[%emt 0:00:00]} Rd3 {[%emt 0:00:43]} 44. Rxb7 {[%emt 0:00:00]} b4 {[%emt 0:00:43]} 45. Kg4 {[%emt 0:00:00]} Rd4+ {[%emt 0:01:28]} 46. Kh5 {[%emt 0:00:00]} Be7 {[%emt 0:02:25]} 47. b3 {[%emt 0:00:00]} Bd8 {[%emt 0:10:55]} 48. Rb8 {[%emt 0:00:00]} Be7 {[%emt 0:02:59]} 49. Rb7 {[%emt 0:00:00]} h3 {[%emt 0:02:29]} 50. g3 {[%emt 0:00:00]} Bd8 {[%emt 0:02:55]} 51. g4 {[%emt 0:00:00]} Kf8 {[%emt 0:00:50]} 52. Kh4 {[%emt 0:00:00]} Ke7 {[%emt 0:00:12]} 53. Kxh3 {[%emt 0:00:00]} Rd3+ {[%emt 0:00:20]} 54. Kg2 {[%emt 0:00:00]} Rxb3 {[%emt 0:00:35]} 55. h4 {[%emt 0:00:00]} Rb2+ {[%emt 0:01:49]} 56. Kf3 {[%emt 0:00:00]} Kd6 {[%emt 0:02:19]} 57. h5 {[%emt 0:00:00]} Kc6 {[%emt 0:00:52]} 58. Rb8 {[%emt 0:00:00]} Kc7 {[%emt 0:01:10]} 59. Rb5 {[%emt 0:00:00]} Kxd7 {[%emt 0:00:25]} 60. h6 {[%emt 0:00:00]} Bc7 {[%emt 0:05:23]} 61. h7 {[%emt 0:00:00]} Rh2 {[%emt 0:00:03]} 62. Rxb4 {[%emt 0:00:00]} Rxh7 {[%emt 0:00:02]} 63. Ra4 {[%emt 0:00:00]} Rh3+ {[%emt 0:00:25]} 64. Kg2 {[%emt 0:00:00]} Rb3 {[%emt 0:01:50]} 65. Rd4+ {[%emt 0:00:00]} Bd6 {[%emt 0:00:52]} 66. Ra4 {[%emt 0:00:00]} Kc6 {[%emt 0:00:41]} 67. Ra6+ {[%emt 0:00:00]} Kd5 {[%emt 0:00:22]} 68. Kf2 {[%emt 0:00:00]} Ra3 {[%emt 0:01:59]} 0-1

[Event "BL 2018-19"]
[Site "Berlin"]
[Date "2019.04.07"]
[Round "15.15"]
[White "Hoi, Carsten"]
[Black "Hoffmann, Paul"]
[Result "1/2-1/2"]
[ECO "E48"]
[WhiteElo "2380"]
[BlackElo "2376"]
[Annotator "NA"]
[PlyCount "54"]
[EventDate "2018.11.10"]
[EventType "team-tourn"]
[EventCountry "GER"]
[SourceTitle "playchess.com"]
[Source "ChessBase"]
[SourceQuality "1"]
[WhiteTeam "Kiel"]
[BlackTeam "Dresden"]
[TimeControl "40/6000+30:3000+30"]

1. d4 {[%emt 0:00:26]} Nf6 {[%emt 0:00:00]} 2. c4 {[%emt 0:01:37]} e6 {[%emt 0:00:00]} 3. Nc3 {[%emt 0:00:18]} Bb4 {[%emt 0:00:00]} 4. e3 {[%emt 0:00:23]} O-O {[%emt 0:02:21]} 5. Bd3 {[%emt 0:02:57]} d5 {[%emt 0:05:00]} 6. Nge2 {[%emt 0:01:23]} Be7 {[%emt 0:12:52]} 7. O-O {[%emt 0:03:06]} c5 {[%emt 0:10:08]} 8. cxd5 {[%emt 0:08:15]} exd5 {[%emt 0:08:45]} 9. dxc5 {[%emt 0:08:31]} Bxc5 {[%emt 0:00:38]} 10. b3 {[%emt 0:01:56]} Nc6 {[%emt 0:01:01]} 11. Bb2 {[%emt 0:04:08]} a6 {[%emt 0:01:46]} 12. Nf4 {[%emt 0:15:28]} Be6 {[%emt 0:15:13]} 13. Nce2 {[%emt 0:07:05]} Ba7 $14 {[%emt 0:02:40]} 14. Rc1 {[%emt 0:05:05]} Qe7 {[%emt 0:20:26]} 15. Bb1 {[%emt 0:14:47]} Rad8 {[%emt 0:04:00]} 16. Nd4 {[%emt 0:03:09]} Bd7 {[%emt 0:01:06]} 17. Nxc6 {[%emt 0:04:05]} Bxc6 {[%emt 0:01:57]} 18. Bd4 {[%emt 0:02:35]} Bb8 {[%emt 0:04:31]} 19. Bc5 {[%emt 0:10:51]} Bd6 {[%emt 0:00:53]} 20. Bxd6 {[%emt 0:00:11]} Qxd6 {[%emt 0:00:06]} 21. Qd4 {[%emt 0:00:40]} g6 {[%emt 0:00:41]} 22. Rfd1 {[%emt 0:00:54]} Ne8 {[%emt 0:01:25]} 23. Qc5 {[%emt 0:03:02]} Qe5 {[%emt 0:02:02]} 24. Qd4 {[%emt 0:01:42]} Qd6 {[%emt 0:01:08]} 25. Nd3 {[%emt 0:02:12]} Nc7 {[%emt 0:01:20]} 26. Qe5 {[%emt 0:00:37]} Ne6 {[%emt 0:01:39]} 27. Qxd6 {[%emt 0:02:53]} Rxd6 1/2-1/2

[Event "BL 2018-19"]
[Site "Berlin"]
[Date "2019.04.07"]
[Round "15.16"]
[White "Moehn, Hans"]
[Black "Bromann, Thorbjorn"]
[Result "0-1"]
[ECO "A01"]
[WhiteElo "2371"]
[BlackElo "2396"]
[Annotator "NA"]
[PlyCount "134"]
[EventDate "2018.11.10"]
[EventType "team-tourn"]
[EventCountry "GER"]
[SourceTitle "playchess.com"]
[Source "ChessBase"]
[SourceQuality "1"]
[WhiteTeam "Dresden"]
[BlackTeam "Kiel"]
[TimeControl "40/6000+30:3000+30"]

1. b3 {[%emt 0:00:00]} e5 {[%emt 0:00:43]} 2. Bb2 {[%emt 0:00:00]} Nc6 {[%emt 0:00:04]} 3. e3 {[%emt 0:00:00]} Nf6 {[%emt 0:00:26]} 4. c4 {[%emt 0:00:00]} g6 {[%emt 0:05:06]} 5. Nf3 {[%emt 0:03:48]} d6 {[%emt 0:00:52]} 6. d3 {[%emt 0:01:15] A01: Nimzowitsch-Larsen Opening} (6. d4 e4 7. Nfd2 Bg7 8. Nc3 Qe7 9. d5 Ne5 10. Ncxe4 Nxe4 11. Nxe4 Bg4 12. Qc1 O-O 13. Nd2 {1-0 (50) Nakamura,H (2777)-Hou,Y (2658) chess.com INT 2018}) 6... Bg7 {[%emt 0:00:30]} 7. Nbd2 {[%emt 0:01:29]} O-O {[%emt 0:00:55]} 8. a3 {[%emt 0:00:51]} a5 {[%emt 0:01:02]} 9. Be2 {[%emt 0:01:26]} h6 {[%emt 0:12:28]} 10. Qc2 {[%emt 0:02:45]} Nh7 $146 {[%emt 0:02:19]} ({Predecessor:} 10... Be6 11. O-O Ne8 {1-0 (36) Regis,G (2167)-Hankel,D (2170) Germany 2009}) 11. Bc3 {[%emt 0:10:45]} f5 {[%emt 0:01:56]} 12. h3 {[%emt 0:02:51]} Qe7 {[%emt 0:23:24]} 13. Rb1 {[%emt 0:14:53]} Be6 {[%emt 0:06:55]} 14. d4 {[%emt 0:16:06]} e4 {[%emt 0:12:53]} 15. d5 {[%emt 0:06:53]} exf3 {[%emt 0:00:30]} 16. Nxf3 {[%emt 0:02:16]} Bd7 {[%emt 0:01:56]} 17. dxc6 {[%emt 0:03:09]} Bxc6 {[%emt 0:00:40]} 18. Bxg7 {[%emt 0:03:42]} Qxg7 {[%emt 0:00:05]} 19. Qb2 {[%emt 0:00:14]} Qe7 {[%emt 0:05:46]} 20. O-O {[%emt 0:07:41]} Ng5 {[%emt 0:00:54]} 21. Rfd1 {[%emt 0:04:40]} f4 {[%emt 0:03:45]} 22. exf4 {[%emt 0:11:28]} Nxf3+ {[%emt 0:03:20]} 23. Bxf3 {[%emt 0:00:06]} Bxf3 {[%emt 0:00:17]} 24. gxf3 {[%emt 0:00:26]} Rxf4 {[%emt 0:01:24]} 25. Kh2 {[%emt 0:12:24]} Rxf3 {[%emt 0:02:51]} 26. Rg1 {[%emt 0:00:04]} Kh7 {[%emt 0:03:21]} 27. Rbe1 {[%emt 0:01:37]} Qf7 {[%emt 0:01:26]} 28. Re2 {[%emt 0:00:25]} Rf8 {[%emt 0:01:29]} 29. Rg2 {[%emt 0:00:54]} Qf6 {[%emt 0:09:37]} 30. Qxf6 {[%emt 0:00:51]} R8xf6 {[%emt 0:00:06]} 31. Re7+ {[%emt 0:01:27]} Rf7 {[%emt 0:00:03]} 32. Rxf7+ {[%emt 0:00:03]} Rxf7 {[%emt 0:00:06]} 33. Kg3 {[%emt 0:00:01]} Rf5 {[%emt 0:04:06]} 34. f4 {[%emt 0:00:33]} g5 {[%emt 0:00:06]} 35. Re2 {[%emt 0:00:01]} gxf4+ {[%emt 0:00:17]} 36. Kf3 {[%emt 0:01:13]} Re5 {[%emt 0:01:04]} 37. Rb2 {[%emt 0:00:01]} Re3+ {[%emt 0:01:29]} 38. Kxf4 {[%emt 0:00:03]} Rxh3 {[%emt 0:00:07]} 39. Re2 {[%emt 0:02:35]} Rxb3 {[%emt 0:03:24]} 40. Re7+ {[%emt 0:00:05]} Kg6 {[%emt 0:01:26]} 41. Rxc7 {[%emt 0:50:13]} Rxa3 {[%emt 0:02:59]} 42. Rd7 {[%emt 0:00:00]} Ra4 {[%emt 0:05:49]} 43. Rxd6+ {[%emt 0:00:00]} Kh5 {[%emt 0:00:19]} 44. Rd5+ {[%emt 0:00:00]} Kh4 {[%emt 0:00:08]} 45. Rc5 {[%emt 0:00:00]} h5 {[%emt 0:03:11]} 46. Kf3 {[%emt 0:00:00]} b6 {[%emt 0:02:06]} 47. Rc6 {[%emt 0:00:00]} Rb4 {[%emt 0:01:47]} 48. c5 {[%emt 0:00:00]} bxc5 {[%emt 0:09:15]} 49. Rxc5 {[%emt 0:00:00]} a4 {[%emt 0:00:19]} 50. Ra5 {[%emt 0:00:00]} Rb3+ {[%emt 0:00:13]} 51. Kf4 {[%emt 0:00:00]} Rg3 {[%emt 0:03:19]} 52. Rc5 {[%emt 0:00:00]} a3 {[%emt 0:02:28]} 53. Ra5 {[%emt 0:00:00]} Rb3 {[%emt 0:01:32]} 54. Ra4 {[%emt 0:00:00]} Rc3 {[%emt 0:04:03]} 55. Ra5 {[%emt 0:00:00]} Rd3 {[%emt 0:00:16]} 56. Ke4 {[%emt 0:00:00]} Rb3 {[%emt 0:00:15]} 57. Kf4 {[%emt 0:00:00]} Rc3 {[%emt 0:00:16]} 58. Ra4 {[%emt 0:00:00]} Kh3 {[%emt 0:04:54]} 59. Kg5 {[%emt 0:00:00]} Kg3 {[%emt 0:00:30]} 60. Kxh5 {[%emt 0:00:00]} Kf2 {[%emt 0:00:22]} 61. Kg4 {[%emt 0:00:00]} Ke3 {[%emt 0:00:12]} 62. Kf5 {[%emt 0:00:00]} Kd3 {[%emt 0:00:50]} 63. Ke5 {[%emt 0:00:00]} Kc2 {[%emt 0:01:11]} 64. Kd4 {[%emt 0:00:00]} Rh3 {[%emt 0:01:51]} 65. Ra8 {[%emt 0:00:00]} Kb2 {[%emt 0:00:58]} 66. Rg8 {[%emt 0:00:00]} a2 {[%emt 0:01:04]} 67. Rg2+ {[%emt 0:00:00]} Kb3 {[%emt 0:00:14]} 0-1